bitfinex/quotes_ETHUSD_20260131
["timestamp","ask_amount","ask_price","bid_price","bid_amount"]
[1769829848782,0.90599446,2705.2,2705.0,0.0011]
[1769829849185,6.23961395,2705.2,2704.8,0.0011]
[1769829855000,1.83016965,2705.2,2704.8,0.0011]
[1769829855203,0.90599446,2705.2,2704.8,0.0011]
[1769829857293,0.001,2705.2,2704.8,0.0011]
[1769829858476,0.001,2705.2,2704.8,4.29375629]
[1769829859605,0.001,2705.2,2704.8,5.2180145]
[1769829860925,0.001,2705.0,2704.8,5.2180145]
[1769829861224,0.001,2705.2,2704.8,0.92535821]
[1769829861429,0.92400289,2705.7,2705.0,4.29265629]
[1769829861634,0.92394116,2705.8,2705.0,4.29265629]
[1769829864230,4.4094443,2705.8,2705.0,4.29265629]
[1769829867341,0.92397531,2705.7,2705.0,4.29265629]
[1769829867788,0.774,2706.0,2704.9,4.29265629]
[1769829867991,0.774,2706.0,2705.1,4.29265629]
[1769829867992,1.6978968,2706.0,2705.1,4.29265629]
[1769829869003,0.774,2706.0,2705.1,4.29265629]
[1769829869511,0.774,2706.0,2705.3,4.29265629]
[1769829870624,2.57117672,2706.7,2705.3,4.29265629]
[1769829870625,1.21638764,2706.6,2705.3,4.29265629]
[1769829870904,1.21638764,2706.6,2705.2,0.92414608]
[1769829870905,1.21638764,2706.6,2705.5,4.29265629]
[1769829871493,1.21638764,2706.6,2705.7,4.29265629]
[1769829871694,5.62583194,2706.6,2705.7,4.29265629]
[1769829872407,4.4094443,2706.5,2705.7,4.29265629]
[1769829873409,0.001,2705.8,2705.7,4.29265629]
[1769829873611,5.62583194,2706.6,2705.7,5.73829622]
[1769829874400,5.62583194,2706.6,2705.7,4.81432513]
[1769829874711,5.62583194,2706.6,2705.8,4.29265629]
[1769829879311,4.64260051,2706.5,2705.7,0.52166884]
[1769829879514,4.64260051,2706.5,2705.7,4.3566043]
[1769829879995,4.64260051,2706.5,2705.7,5.28057485]
[1769829880898,4.64260051,2706.5,2705.7,4.3566043]
[1769829881216,5.69889964,2706.5,2705.7,4.3566043]
[1769829882628,0.92373632,2706.4,2705.7,4.3566043]
[1769829885733,0.92473632,2706.4,2705.7,4.3566043]
[1769829887026,4.64260051,2706.3,2705.5,0.92402249]
[1769829887389,0.92473632,2706.4,2705.5,5.28062679]
[1769829887593,0.56759448,2706.3,2705.5,5.28062679]
[1769829887803,1.49138469,2706.3,2705.5,5.28062679]
[1769829888612,4.64260051,2705.9,2705.2,0.0011]
[1769829889533,4.64260051,2705.9,2705.2,0.925243]
[1769829889846,4.64260051,2705.9,2705.2,5.2818473]
[1769829890160,0.774,2706.0,2705.3,4.3566043]
[1769829890161,1.69790372,2706.0,2705.3,4.3566043]
[1769829890445,0.92390372,2706.0,2705.3,4.3566043]
[1769829893639,5.5664051,2706.2,2705.3,5.28069351]
[1769829893840,6.67093286,2706.2,2705.4,4.3566043]
[1769829897263,6.67093286,2706.2,2705.4,5.28067765]
[1769829897661,6.67093286,2706.2,2705.5,0.0011]
[1769829897957,0.001,2706.0,2705.5,0.0011]
[1769829899363,4.64360051,2706.0,2705.5,0.0011]
[1769829899860,5.3107938,2706.0,2705.5,0.0011]
[1769829901465,1.59209225,2706.0,2705.5,0.0011]
[1769829901665,4.64260051,2705.9,2705.5,0.0011]
[1769829903365,5.5665134,2705.9,2705.5,0.0011]
[1769829910676,0.9248867,2706.0,2705.7,0.0011]
[1769829912061,0.001,2706.0,2705.7,0.0011]
[1769829914453,0.89406005,2706.0,2705.7,0.0011]
[1769829915475,0.92390701,2705.9,2705.7,0.0011]
[1769829917066,6.27825801,2706.0,2705.7,0.0011]
[1769829918063,0.89406005,2706.0,2705.7,0.0011]
[1769829918382,0.001,2706.0,2705.7,0.0011]
[1769829918792,0.92487794,2706.0,2705.7,0.0011]
[1769829918968,0.001,2706.0,2705.7,0.0011]
[1769829919502,0.001,2706.0,2705.7,4.51881959]
[1769829919661,0.001,2706.0,2705.7,4.97081155]
[1769829919987,0.001,2706.0,2705.8,0.92394116]
[1769829920386,0.001,2706.0,2705.8,5.44166075]
[1769829920561,0.29269442,2706.6,2705.8,5.44166075]
[1769829920562,1.06669442,2706.6,2705.8,5.44166075]
[1769829921392,0.29269442,2706.6,2705.8,5.44166075]
[1769829921561,0.29269442,2706.6,2705.9,5.47678259]
[1769829923587,0.001,2706.4,2705.9,5.47678259]
[1769829926094,0.001,2706.4,2705.9,0.959063]
[1769829931791,0.001,2706.4,2705.9,1.88296978]
[1769829932802,0.001,2706.4,2705.9,5.47678259]
[1769829933012,0.001,2706.4,2706.0,0.64006992]
[1769829936628,0.001,2706.4,2706.1,0.0011]
[1769829945014,0.001,2706.4,2706.1,4.28400429]
[1769829945819,0.001,2706.4,2706.2,0.92380459]
[1769829947195,0.001,2706.4,2706.1,0.0011]
[1769829948411,0.001,2706.4,2706.1,1.05146933]
[1769829949097,0.001,2706.2,2706.1,1.05146933]
[1769829949295,0.001,2706.2,2706.1,0.0011]
[1769829971864,0.29269442,2706.6,2706.1,4.24422953]
[1769829975467,0.29269442,2706.6,2706.1,5.16806152]
[1769829976872,4.68508242,2706.5,2705.7,0.0011]
[1769829977059,4.68508242,2706.2,2705.5,0.0011]
[1769829977262,5.45908242,2706.2,2705.5,0.0011]
[1769829978069,4.68508242,2706.0,2705.5,0.0011]
[1769829978270,4.68508242,2705.8,2705.5,0.0011]
[1769829984250,4.68508242,2705.8,2705.2,0.0011]
[1769829984452,5.60902803,2705.8,2705.2,0.0011]
[1769829985573,5.60902803,2705.8,2705.7,0.0011]
[1769829985769,5.60902803,2705.8,2705.5,0.0011]
[1769829986075,4.68508242,2705.6,2705.2,0.0011]
[1769829988381,5.15470833,2705.9,2705.2,0.0011]
[1769829988550,2.56,2706.1,2705.2,4.24422953]
[1769829988750,6.74604593,2706.4,2705.2,4.24422953]
[1769829989214,0.774,2706.3,2705.2,4.24422953]
[1769829989481,0.774,2706.3,2705.4,4.24312953]
[1769829989772,5.60888701,2706.2,2705.4,0.92407407]
[1769829989952,5.60888701,2706.2,2705.2,0.0011]
[1769829990154,4.68508242,2706.0,2705.2,0.9252441]
[1769829990352,4.68508242,2706.0,2705.2,0.0011]
[1769829990568,4.69625914,2705.7,2705.2,0.0011]
[1769829992059,0.92400946,2705.6,2705.2,0.0011]
[1769829992251,0.56202686,2705.5,2705.2,0.0011]
[1769829997386,1.33602686,2705.5,2705.4,0.0011]
[1769829997590,1.33602686,2705.5,2705.1,0.0011]
[1769830001183,2.2600732,2705.5,2705.1,0.0011]
[1769830004185,6.90620525,2705.5,2705.1,0.0011]
[1769830004385,5.04709453,2705.4,2704.5,0.0011]
[1769830005512,4.64613205,2705.2,2704.5,0.0011]
[1769830005692,4.65730877,2705.2,2704.5,0.0011]
[1769830006070,4.64613205,2705.1,2704.5,0.0011]
[1769830006274,5.48643847,2705.2,2704.1,0.0011]
[1769830006275,4.64613205,2704.8,2704.1,0.0011]
[1769830006482,5.42013205,2704.8,2704.1,0.0011]
[1769830008219,6.34442025,2704.8,2704.1,0.0011]
[1769830009225,6.34442025,2704.8,2704.5,0.0011]
[1769830010481,6.34441821,2704.8,2704.5,0.0011]
[1769830010681,0.63444182,2704.7,2704.5,0.0011]
[1769830012519,1.69828616,2704.8,2704.5,0.0011]
[1769830020933,0.64105504,2705.1,2704.5,4.67858198]
[1769830021128,0.775,2705.0,2704.5,4.67858198]
[1769830021432,5.42113205,2705.0,2704.5,0.0011]
[1769830021734,4.65730877,2704.9,2704.5,0.0011]
[1769830021898,0.001,2704.6,2704.5,0.0011]
[1769830022301,0.46571321,2704.6,2704.5,0.0011]
[1769830022942,0.46571321,2704.6,2704.1,0.0011]
[1769830023431,1.39006485,2704.6,2704.1,0.0011]
[1769830024238,4.64613205,2704.4,2703.9,0.0011]
[1769830024419,1.78713938,2704.3,2703.9,0.0011]
[1769830024821,2.71162494,2704.3,2703.9,0.0011]
[1769830026238,7.35775699,2704.3,2703.9,0.0011]
[1769830027846,4.41217657,2704.2,2703.2,0.0011]
[1769830028137,4.41217657,2704.0,2703.2,4.51427032]
[1769830028827,4.41217657,2704.0,2703.2,0.0011]
[1769830029334,5.32565865,2703.7,2703.2,0.0011]
[1769830029505,5.56578561,2703.6,2703.2,0.0011]
[1769830031840,0.9247272,2703.5,2703.0,0.0011]
[1769830032026,0.55257192,2703.4,2703.0,0.0011]
[1769830032434,0.55257192,2703.4,2702.8,4.51427032]
[1769830032631,5.41828498,2703.4,2702.6,0.0011]
[1769830032940,4.74504008,2703.3,2702.4,4.51427032]
[1769830033146,0.87739627,2703.2,2702.4,4.51427032]
[1769830033441,0.34253153,2703.1,2702.4,4.51427032]
[1769830033738,5.17599985,2703.0,2702.4,0.0011]
[1769830033940,0.9249667,2702.8,2702.2,4.51317032]
[1769830034139,4.76589142,2702.9,2702.0,5.43840943]
[1769830034140,0.89896593,2702.7,2702.0,5.43840943]
[1769830034343,0.3163826,2702.6,2702.1,4.51317032]
[1769830034543,0.3163826,2702.6,2702.3,4.51317032]
[1769830034723,0.3163826,2702.6,2702.3,4.21836175]
[1769830035641,0.3163826,2702.6,2702.3,3.9290963]
[1769830035945,0.3163826,2702.6,2702.3,3.0524316]
[1769830036241,0.3163826,2702.6,2702.3,2.75763855]
[1769830039647,0.3163826,2702.6,2702.1,5.43945634]
[1769830039837,0.3163826,2702.6,2702.1,4.51427032]
[1769830040146,0.3163826,2702.6,2702.1,5.05822301]
[1769830041254,0.3163826,2702.6,2702.1,5.98342426]
[1769830041453,0.3163826,2702.6,2702.2,4.51317032]
[1769830041956,0.3163826,2702.6,2702.1,0.54505269]
[1769830042556,0.3163826,2702.6,2702.1,0.0011]
[1769830044851,4.40099985,2702.5,2702.1,0.0011]
[1769830046257,4.40099985,2702.5,2702.3,0.0011]
[1769830046555,0.001,2702.4,2701.6,5.43963962]
[1769830046766,0.92610361,2702.4,2702.0,0.0011]
[1769830047126,0.001,2702.4,2702.0,0.0011]
[1769830048758,0.28691326,2702.4,2702.0,0.0011]
[1769830053935,5.61301919,2702.4,2702.0,0.0011]
[1769830054562,6.62183902,2702.4,2702.0,0.0011]
[1769830054776,6.62183902,2702.4,2701.6,5.43964464]
[1769830056462,5.61301919,2702.4,2701.6,5.43964464]
[1769830057781,4.68791311,2702.4,2701.6,5.43964464]
[1769830058278,0.28691326,2702.4,2701.6,5.43964464]
[1769830058566,0.28691326,2702.4,2701.8,0.0011]
[1769830058771,1.21202217,2702.4,2701.8,0.0011]
[1769830058972,2.25925707,2702.4,2701.8,0.0011]
[1769830059837,1.33414816,2702.4,2701.8,4.39718926]
[1769830060140,0.28691326,2702.4,2701.8,4.39718926]
[1769830064163,0.28691326,2702.4,2701.8,5.3224963]
[1769830064860,0.28691326,2702.4,2701.8,4.39718926]
[1769830066772,0.28691326,2702.4,2701.8,5.32249595]
[1769830070360,0.001,2702.2,2701.8,5.32249595]
[1769830070567,0.001,2702.2,2701.8,6.22500423]
[1769830076151,0.001,2702.2,2701.8,1.82891497]
[1769830076884,0.28691326,2702.4,2701.9,4.39608926]
[1769830078781,0.28691326,2702.4,2702.0,0.92524056]
[1769830080054,5.06088992,2702.4,2701.8,1.82889126]
[1769830080376,0.28691326,2702.4,2701.9,5.32135696]
[1769830081286,0.28691326,2702.4,2701.9,0.9252677]
[1769830081984,0.28691326,2702.4,2702.0,0.0011]
[1769830082282,0.001,2702.2,2702.0,0.0011]
[1769830082606,4.77497666,2702.2,2701.6,0.0011]
[1769830082757,5.25147433,2702.1,2701.6,0.0011]
[1769830083164,4.77397666,2701.9,2701.6,0.0011]
[1769830084160,4.77397666,2701.9,2701.5,0.0011]
[1769830084564,4.77397666,2701.9,2701.3,0.0011]
[1769830086295,5.69927018,2701.9,2701.3,0.0011]
[1769830086482,4.77397666,2701.7,2701.3,0.0011]
[1769830094310,4.77397666,2701.7,2701.5,0.0011]
[1769830094496,4.77397666,2701.7,2701.2,0.0011]
[1769830094676,0.001,2701.5,2701.2,0.0011]
[1769830096784,0.001,2701.5,2701.2,4.43805377]
[1769830096979,1.25249767,2702.1,2701.3,0.92548032]
[1769830096980,5.29318212,2702.1,2701.3,0.92548032]
[1769830097186,0.001,2702.2,2701.3,5.36243409]
[1769830101892,0.28691326,2702.4,2701.8,4.43695377]
[1769830102097,4.36795952,2702.8,2701.8,4.43695377]
[1769830103905,4.36795952,2702.8,2701.9,5.36222857]
[1769830104111,4.36795952,2702.8,2701.9,0.9252748]
[1769830104722,5.29292818,2702.8,2701.9,0.9252748]
[1769830104883,4.36795952,2702.7,2701.9,1.83160758]
[1769830105302,4.36795952,2702.7,2701.9,6.26856135]
[1769830106521,4.36795952,2702.7,2701.9,6.26966135]
[1769830106892,0.001,2702.5,2701.9,1.83270758]
[1769830115138,0.001,2702.5,2702.0,4.43695377]
[1769830115328,0.001,2702.5,2702.1,0.62696614]
[1769830115915,0.001,2702.5,2702.2,0.92517208]
[1769830117930,0.001,2702.5,2702.1,1.55214762]
[1769830119200,4.36007973,2702.8,2702.1,1.55214762]
[1769830127835,4.36007973,2702.8,2702.1,0.92518148]
[1769830128035,5.44661998,2703.0,2702.1,5.69653131]
[1769830130935,5.44661998,2703.0,2702.3,0.0011]
[1769830131243,4.52269568,2702.8,2702.3,0.0011]
[1769830141460,0.001,2702.8,2702.3,0.0011]
[1769830141659,4.79559485,2703.4,2702.3,5.24969481]
[1769830141958,0.27389917,2703.4,2702.3,4.77244983]
[1769830143124,0.27389917,2703.4,2702.5,4.77134983]
[1769830143324,0.27389917,2703.4,2702.7,4.77134983]
[1769830145958,0.27389917,2703.4,2702.8,0.9249667]
[1769830146843,0.27389917,2703.4,2702.8,5.36322653]
[1769830148564,0.27389917,2703.4,2702.7,3.69989432]
[1769830150599,5.07125212,2703.4,2702.6,0.47713498]
[1769830150763,5.07125212,2703.4,2702.5,0.0011]
[1769830150764,4.79735295,2703.2,2702.5,0.0011]
[1769830151478,4.79735295,2703.2,2702.5,0.92616301]
[1769830151655,4.79735295,2703.2,2702.5,0.0011]
[1769830152960,5.72221243,2703.2,2702.5,0.0011]
[1769830153156,4.79735295,2703.0,2702.5,0.0011]
[1769830155280,4.79735295,2703.0,2702.7,0.0011]
[1769830156898,0.001,2703.2,2702.7,0.0011]
[1769830163204,0.001,2703.2,2702.7,4.43935983]
[1769830163502,0.001,2703.2,2702.8,0.5364395]
[1769830167405,0.001,2703.0,2702.8,0.5364395]
[1769830172210,4.79835295,2703.0,2702.5,0.0011]
[1769830173118,4.79835295,2703.0,2702.3,0.0011]
[1769830174012,5.72328539,2703.0,2702.3,0.0011]
[1769830176831,4.79835295,2703.0,2702.3,0.0011]
[1769830177700,5.37077468,2703.0,2702.3,0.0011]
[1769830178518,4.79835295,2703.0,2702.3,0.0011]
[1769830179016,5.72325791,2703.0,2702.3,0.0011]
[1769830179600,5.72325791,2703.0,2702.5,0.0011]
[1769830184325,0.001,2703.0,2702.5,0.0011]
[1769830187241,4.64972412,2703.0,2702.5,0.0011]
[1769830187424,5.11479653,2703.0,2702.5,0.0011]
[1769830190352,1.390983,2703.0,2702.5,0.0011]
[1769830190510,4.64872412,2702.9,2702.5,0.0011]
[1769830191521,0.001,2702.8,2702.5,0.0011]
[1769830192441,4.64972412,2702.8,2702.5,0.0011]
[1769830192644,5.20619019,2702.7,2702.5,0.0011]
[1769830192832,4.64872412,2702.7,2702.5,0.0011]
[1769830198663,0.001,2702.8,2702.5,0.0011]
[1769830198836,4.64972412,2702.8,2702.5,0.0011]
[1769830202734,4.64972412,2702.8,2702.3,0.0011]
[1769830202932,4.64872412,2702.4,2701.9,0.0011]
[1769830203158,0.001,2702.6,2702.0,0.92523521]
[1769830203363,0.001,2702.6,2702.0,5.38032368]
[1769830206049,0.001,2703.2,2702.3,4.45508847]
[1769830206250,0.001,2703.2,2702.5,4.45508847]
[1769830207052,0.001,2703.2,2702.7,4.61038906]
[1769830207262,4.6489169,2703.2,2702.4,0.99406202]
[1769830207449,4.6489169,2703.2,2701.9,0.0011]
[1769830207450,4.6479169,2702.7,2701.9,0.0011]
[1769830209451,4.6479169,2702.5,2701.9,0.0011]
[1769830212870,5.57299963,2702.5,2701.9,0.0011]
[1769830213069,5.57299963,2702.5,2701.6,0.0011]
[1769830213070,4.6479169,2702.3,2701.6,0.0011]
[1769830215276,5.57307794,2702.3,2702.1,0.0011]
[1769830215458,5.57307794,2702.3,2701.6,0.0011]
[1769830215954,5.57307794,2702.3,2701.9,0.0011]
[1769830217773,5.57307794,2702.3,2701.6,0.0011]
[1769830217965,5.57309425,2702.2,2701.6,0.0011]
[1769830218144,5.57309284,2702.2,2701.6,0.0011]
[1769830218345,4.6479169,2702.2,2701.6,0.0011]
[1769830218871,5.57309949,2702.2,2701.6,0.0011]
[1769830220063,4.6479169,2702.2,2701.6,0.0011]
[1769830220363,4.6479169,2702.2,2701.6,0.46235891]
[1769830221750,5.4229169,2702.4,2701.6,5.07274797]
[1769830221950,5.4229169,2702.4,2701.7,5.53573236]
[1769830227880,5.4229169,2702.4,2701.9,0.0011]
[1769830228084,0.001,2702.2,2701.9,0.0011]
[1769830229570,4.6479169,2702.6,2701.9,5.1651723]
[1769830229772,0.001,2703.0,2701.9,5.1651723]
[1769830229773,0.001,2703.0,2702.1,4.61038906]
[1769830229975,4.6489169,2703.0,2702.1,4.61038906]
[1769830231858,5.57382837,2703.0,2702.2,0.92517208]
[1769830232059,5.57382837,2703.0,2702.3,0.55355611]
[1769830232459,4.6489169,2703.0,2702.3,0.55355611]
[1769830232891,5.57381662,2703.0,2702.3,0.55355611]
[1769830234560,4.6489169,2703.0,2702.3,1.47868099]
[1769830235257,5.57381687,2703.0,2702.3,1.47868099]
[1769830237390,4.6489169,2703.0,2702.3,1.47868099]
[1769830237769,4.6489169,2703.0,2702.4,0.51793511]
[1769830238688,4.6489169,2703.0,2702.3,0.92512488]
[1769830238886,5.57382013,2703.0,2702.2,0.92514345]
[1769830239095,5.48553177,2702.8,2701.9,0.55478324]
[1769830239265,5.48553177,2702.8,2701.9,0.0011]
[1769830239266,5.24601354,2702.7,2701.9,0.0011]
[1769830239467,4.69746036,2702.5,2701.9,0.0011]
[1769830242492,0.001,2702.8,2701.9,4.71666402]
[1769830242698,0.001,2702.8,2702.1,4.71556402]
[1769830243660,0.001,2702.8,2702.2,0.92517208]
[1769830246390,0.001,2702.8,2702.1,5.64074456]
[1769830247188,4.69846036,2702.8,2702.1,5.64074456]
[1769830247401,4.69746036,2702.5,2701.9,0.0011]
[1769830247566,4.69746036,2702.3,2701.7,0.92534243]
[1769830248194,4.69746036,2702.3,2701.5,3.70161884]
[1769830250995,4.69746036,2702.3,2701.8,0.0011]
[1769830251567,5.62261167,2702.3,2701.8,0.0011]
[1769830252886,4.72333454,2702.2,2701.5,0.0011]
[1769830253200,4.72333454,2702.1,2701.5,0.0011]
[1769830260774,5.64842565,2702.5,2701.6,4.78631407]
[1769830260996,0.92505803,2702.6,2701.6,4.78631407]
[1769830261506,5.64839257,2702.6,2701.6,4.78631407]
[1769830262103,4.47595977,2702.8,2701.8,4.78521407]
[1769830262104,0.001,2702.8,2701.8,4.78521407]
[1769830262872,0.001,2702.8,2702.0,4.78521407]
[1769830263316,0.001,2702.1,2702.0,4.78521407]
[1769830263517,0.001,2702.8,2702.0,4.78521407]
[1769830265422,0.001,2702.8,2702.2,4.78521407]
[1769830265594,0.001,2702.8,2702.3,0.57104204]
[1769830267527,0.001,2702.8,2702.3,1.49614855]
[1769830268510,4.90572486,2702.8,2702.3,1.49614855]
[1769830273631,0.001,2702.8,2702.3,1.49614855]
[1769830274936,0.001,2702.6,2702.3,1.49614855]
[1769830275508,0.001,2702.6,2702.4,0.63868129]
[1769830278041,0.001,2702.6,2702.3,0.92510651]
[1769830282844,0.001,2702.6,2702.0,0.92521981]
[1769830283041,0.001,2702.6,2701.9,0.92525726]
[1769830283042,4.90572486,2702.6,2701.9,0.92525726]
[1769830283345,4.90572486,2702.6,2701.9,1.43590322]
[1769830283843,4.90572486,2702.6,2701.9,0.51064596]
[1769830284025,4.90572486,2702.6,2701.8,0.92638769]
[1769830285447,4.90572486,2702.6,2701.8,0.92640905]
[1769830286417,0.001,2702.4,2701.8,0.92640905]
[1769830287741,0.001,2702.6,2701.9,4.8230747]
[1769830287956,0.001,2702.6,2702.1,4.8230747]
[1769830288425,0.001,2702.6,2702.0,0.57494838]
[1769830288625,0.001,2702.6,2701.9,4.8230747]
[1769830289214,0.001,2702.6,2702.0,0.92524056]
[1769830290355,4.90572486,2702.6,2701.9,0.92526695]
[1769830290868,4.90572486,2702.6,2701.8,0.92639871]
[1769830291066,5.39639735,2702.6,2701.8,0.92639871]
[1769830293234,1.41671391,2702.6,2701.8,0.92639871]
[1769830293444,4.90472486,2702.5,2701.8,0.92639871]
[1769830293945,4.90472486,2702.5,2701.8,0.0011]
[1769830294146,4.90472486,2702.5,2701.6,0.0011]
[1769830294347,4.90472486,2702.3,2701.6,0.0011]
[1769830295851,4.90472486,2702.1,2701.6,0.0011]
[1769830299056,5.82994578,2702.1,2701.8,0.0011]
[1769830303358,4.90472486,2702.1,2701.8,0.0011]
[1769830303559,0.58299218,2702.0,2701.8,0.0011]
[1769830304959,0.775,2702.1,2701.8,0.0011]
[1769830308974,4.59550752,2702.0,2701.8,0.0011]
[1769830309266,4.59550752,2702.0,2701.2,0.0011]
[1769830310830,4.59550752,2702.0,2701.8,0.0011]
[1769830311031,4.59550752,2701.8,2701.2,0.0011]
[1769830311261,4.59550752,2701.8,2701.5,0.0011]
[1769830313847,5.52081905,2701.8,2701.5,0.0011]
[1769830315063,4.59550752,2701.8,2701.5,0.0011]
[1769830318281,0.001,2701.9,2701.5,0.0011]
[1769830318783,0.775,2701.8,2701.5,0.0011]
[1769830321896,5.52161635,2702.4,2701.5,4.14875356]
[1769830322258,5.52161635,2702.4,2701.5,0.46560244]
[1769830322783,4.59550752,2702.0,2701.2,0.0011]
[1769830322967,4.59550752,2701.8,2701.2,0.0011]
[1769830323166,5.13255827,2701.7,2701.2,0.0011]
[1769830323383,4.59550752,2701.7,2701.2,0.0011]
[1769830324559,0.92537755,2701.6,2701.2,0.0011]
[1769830325363,5.52087639,2701.7,2701.2,0.0011]
[1769830327295,1.70030359,2701.9,2701.2,0.0011]
[1769830327593,6.30857813,2701.9,2701.2,0.0011]
[1769830327792,7.39759179,2701.9,2701.2,0.0011]
[1769830328794,2.78931725,2701.9,2701.2,0.0011]
[1769830328990,4.60827454,2701.8,2701.2,0.0011]
[1769830329395,5.53361084,2701.8,2701.2,0.0011]
[1769830333380,6.64348101,2701.8,2701.2,0.0011]
[1769830333876,4.60827454,2701.7,2701.2,0.0011]
[1769830334479,4.60827454,2701.7,2701.4,0.0011]
[1769830334678,0.001,2701.6,2701.2,0.0011]
[1769830336704,4.60927454,2701.6,2701.2,0.0011]
[1769830336874,5.13881208,2701.6,2701.2,0.0011]
[1769830337077,4.60827454,2701.4,2700.8,0.0011]
[1769830337375,5.5338457,2701.1,2700.5,0.0011]
[1769830337574,5.6972882,2701.0,2700.5,0.0011]
[1769830337786,5.6972882,2701.0,2700.4,0.0011]
[1769830338102,5.6972882,2701.0,2700.2,0.0011]
[1769830340302,5.53389192,2700.9,2700.2,0.0011]
[1769830346688,5.53389192,2700.9,2700.4,0.0011]
[1769830346904,5.2705651,2700.8,2700.4,0.0011]
[1769830347210,0.001,2700.7,2700.4,0.0011]
[1769830352010,4.60927454,2700.7,2700.4,0.0011]
[1769830352984,4.60927454,2700.7,2699.1,0.0011]
[1769830352985,4.60827454,2700.5,2699.1,0.0011]
[1769830353185,5.48875579,2700.6,2699.4,0.92611301]
[1769830353186,4.60827454,2700.2,2699.4,0.92611301]
[1769830354115,4.60827454,2700.0,2699.2,3.70476223]
[1769830357329,4.60827454,2700.0,2699.2,0.92620035]
[1769830357821,5.53421348,2700.0,2699.2,0.92620035]
[1769830359112,5.53421348,2700.0,2699.1,3.55330277]
[1769830359113,5.53421348,2700.0,2699.4,0.0011]
[1769830365120,5.32103341,2699.9,2699.4,0.0011]
[1769830365627,0.776,2700.3,2699.4,3.51369257]
[1769830365829,1.69629721,2700.3,2699.4,3.51369257]
[1769830366330,6.24133062,2700.3,2699.4,3.51369257]
[1769830368230,4.54503341,2700.1,2699.4,0.0011]
[1769830370741,5.47095015,2700.1,2699.4,0.0011]
[1769830370911,0.92591674,2700.1,2699.4,3.49742584]
[1769830372534,5.47095015,2700.1,2699.4,3.49742584]
[1769830372928,6.28462474,2700.1,2699.4,0.0011]
[1769830373318,0.99444957,2700.2,2699.5,3.49115821]
[1769830373639,6.24687557,2700.3,2699.5,3.49115821]
[1769830373838,1.70184216,2700.3,2699.5,3.49115821]
[1769830374037,4.54503341,2700.2,2699.5,3.49115821]
[1769830374239,0.776,2700.3,2699.6,0.44183646]
[1769830374450,4.54503341,2700.4,2699.6,3.93047854]
[1769830374626,4.54503341,2700.4,2699.6,3.48864208]
[1769830375019,4.54503341,2700.4,2699.7,0.92602881]
[1769830375219,5.47077825,2700.6,2699.7,4.41217747]
[1769830375436,5.47077825,2700.6,2699.8,4.29779164]
[1769830377533,5.47077825,2700.6,2699.8,5.22376378]
[1769830379246,2.70143482,2700.7,2699.9,3.47610764]
[1769830379551,0.001,2700.7,2699.9,3.47610764]
[1769830380749,0.001,2700.7,2700.1,3.47366199]
[1769830380952,0.92553491,2701.2,2700.1,3.47024143]
[1769830381127,5.47056832,2701.2,2700.1,3.47024143]
[1769830381321,4.54503341,2701.1,2700.0,0.92592592]
[1769830381523,5.53988695,2701.1,2700.1,0.8099871]
[1769830382050,4.54503341,2700.9,2700.0,0.92592592]
[1769830382659,4.54503341,2700.9,2700.1,3.46786579]
[1769830382947,5.47067898,2700.9,2700.0,0.92592592]
[1769830386165,5.47067898,2700.9,2699.9,0.92596022]
[1769830386340,4.54503341,2700.8,2699.9,1.4701145]
[1769830390770,5.47069243,2700.8,2699.9,1.4701145]
[1769830391272,5.47069243,2700.8,2699.9,0.54415428]
[1769830391447,4.36567944,2700.7,2699.7,0.92600349]
[1769830392864,4.36567944,2700.5,2699.6,0.92714305]
[1769830393064,4.36567944,2700.3,2699.6,0.0011]
[1769830394683,4.36567944,2700.3,2700.1,0.0011]
[1769830394981,4.36567944,2700.1,2699.6,0.0011]
[1769830395272,5.26516281,2700.1,2699.9,0.0011]
[1769830395572,5.26516281,2700.1,2699.6,0.0011]
[1769830396754,4.36567944,2700.3,2699.6,0.0011]
[1769830397758,5.29150389,2700.3,2699.6,0.0011]
[1769830398868,4.36567944,2700.1,2699.4,0.0011]
[1769830399176,4.36567944,2699.9,2699.4,0.0011]
[1769830400077,5.29158232,2700.1,2699.4,0.0011]
[1769830400276,5.29145961,2700.5,2699.4,3.42798746]
[1769830401785,5.29145961,2700.5,2699.5,0.92609742]
[1769830402078,5.34281572,2700.4,2699.5,4.81250981]
[1769830403848,6.26862529,2700.4,2699.5,4.81250981]
[1769830405353,4.36567944,2700.4,2699.5,4.81250981]
[1769830405554,4.36567944,2700.4,2699.6,3.41774376]
[1769830407055,0.001,2700.2,2699.6,3.41774376]
[1769830408889,0.001,2700.2,2699.6,4.34378355]
[1769830412491,0.777,2700.6,2699.7,3.4047263]
[1769830412669,0.001,2700.6,2699.7,3.4047263]
[1769830413562,0.001,2700.6,2699.9,3.40305195]
[1769830415893,0.001,2700.6,2700.0,0.92592592]
[1769830416077,4.36667944,2700.6,2700.0,0.92592592]
[1769830417789,4.36667944,2700.6,2699.9,0.92593971]
[1769830418290,4.36667944,2700.6,2699.8,3.70394423]
[1769830418481,4.36667944,2700.6,2699.8,0.37039442]
[1769830418685,4.36667944,2700.6,2699.6,0.92606312]
[1769830419276,0.001,2700.4,2699.6,0.92606312]
[1769830419481,4.56735569,2700.4,2699.6,0.92606312]
[1769830422633,5.49315495,2700.4,2699.6,0.92606312]
[1769830422827,5.49315495,2700.4,2699.5,1.38924723]
[1769830423029,4.56635569,2700.2,2699.5,0.92607631]
[1769830425539,4.56635569,2700.2,2699.4,3.7056043]
[1769830426514,4.56635569,2700.2,2699.4,0.92723173]
[1769830428825,5.49222689,2700.2,2699.4,0.92723173]
[1769830428999,4.56635569,2700.0,2699.4,0.92723173]
[1769830429738,4.56635569,2700.0,2699.4,0.0011]
[1769830430803,4.56635569,2700.0,2699.6,0.0011]
[1769830441733,4.46240107,2700.2,2699.6,0.0011]
[1769830442430,4.46240107,2700.2,2699.8,0.0011]
[1769830442633,0.57877166,2700.1,2699.8,0.0011]
[1769830444021,5.04117273,2700.1,2699.8,0.0011]
[1769830445316,4.46240107,2700.1,2699.8,0.0011]
[1769830454341,4.92820398,2700.3,2699.8,0.0011]
[1769830454534,0.001,2700.4,2699.8,0.0011]
[1769830455047,0.001,2700.4,2699.6,0.0011]
[1769830455048,4.37888848,2700.3,2699.6,0.0011]
[1769830455241,4.37888848,2700.1,2699.6,0.0011]
[1769830466661,4.37888848,2700.1,2699.8,0.0011]